bitfinex/quotes_ETHUSD_20220123
["timestamp","ask_amount","ask_price","bid_price","bid_amount"]
[1642905843180,0.00170527,2421.8,2421.4,1.1253]
[1642905843579,1.1651,2422.2,2421.6,1.40320187]
[1642905843580,0.00113685,2421.7,2421.6,1.40320187]
[1642905843781,0.20752685,2421.7,2421.3,1.47713683]
[1642905843988,0.1651,2421.6,2421.3,1.47713683]
[1642905844182,2.15639,2421.4,2421.3,1.47713683]
[1642905844380,0.37149,2421.4,2421.3,1.47713683]
[1642905845181,3.07149,2421.4,2421.3,1.47713683]
[1642905845380,3.07149,2421.4,2420.6,0.1651]
[1642905845381,0.96252567,2421.4,2420.6,0.1651]
[1642905845583,0.1652,2421.3,2420.6,0.1651]
[1642905845780,0.20639,2421.2,2420.7,0.00341054]
[1642905846080,0.1652,2421.1,2420.7,0.00341054]
[1642905847738,0.1652,2421.1,2420.1,0.00682109]
[1642905847939,0.1652,2421.1,2420.3,1.23204919]
[1642905848140,0.20639,2421.0,2420.3,1.23204919]
[1642905848439,0.1652,2420.9,2420.4,0.00511581]
[1642905848842,0.1652,2420.9,2420.1,0.00682109]
[1642905849039,0.20639,2420.8,2420.1,0.00682109]
[1642905849239,0.1652,2420.7,2420.1,0.00682109]
[1642905849441,1.276597,2420.4,2420.1,0.00682109]
[1642905849643,2.10639,2420.2,2420.1,0.00682109]
[1642905849846,0.1652,2420.3,2420.0,0.00738951]
[1642905850043,1.0,2420.8,2420.0,0.00738951]
[1642905850044,0.1652,2420.8,2420.0,0.00738951]
[1642905850243,0.492,2420.7,2420.0,0.00738951]
[1642905850684,0.492,2420.7,2420.4,1.21223732]
[1642905850889,0.20639,2421.3,2420.9,1.42657101]
[1642905850890,0.1652,2421.1,2420.9,1.42657101]
[1642905851185,0.1652,2421.1,2420.0,0.00738951]
[1642905851186,0.20639,2421.3,2421.0,0.00170527]
[1642905851392,0.20639,2421.3,2419.9,7.61622124]
[1642905851393,0.21935319,2421.1,2419.9,0.17652124]
[1642905851594,0.01203922,2420.5,2419.9,0.17652124]
[1642905851786,0.1652,2420.4,2419.9,0.17652124]
[1642905851986,0.1652,2420.6,2419.9,0.17652124]
[1642905852186,0.1652,2420.8,2420.5,1.34860088]
[1642905852391,0.1652,2421.1,2419.9,0.17652124]
[1642905852588,0.1652,2421.1,2420.6,0.0022737]
[1642905852991,0.00113684,2421.2,2420.6,0.0022737]
[1642905853388,0.00113684,2421.2,2421.1,1.29605453]
[1642905853587,0.00113684,2421.2,2420.7,3.907]
[1642905853792,0.00113684,2421.2,2420.5,3.2442]
[1642905853990,0.00113684,2421.2,2420.8,0.00113685]
[1642905854255,0.37159,2421.1,2420.8,0.00113685]
[1642905854454,0.37159,2421.1,2420.4,0.00341054]
[1642905854654,0.20639,2421.1,2420.4,0.00341054]
[1642905854853,0.69839,2421.1,2420.3,1.51246723]
[1642905855155,0.69839,2421.1,2420.4,0.00341054]
[1642905855451,0.69839,2421.1,2420.7,1.2536714]
[1642905855452,0.492,2421.1,2420.7,1.2536714]
[1642905855851,0.492,2421.1,2420.8,0.00113685]
[1642905857153,0.1652,2421.0,2420.8,0.00113685]
[1642905857351,0.1652,2421.1,2420.0,0.00568424]
[1642905857989,0.00113684,2421.2,2420.9,1.41704524]
[1642905858187,0.00113684,2421.2,2420.9,1.71704524]
[1642905858390,0.00113684,2421.2,2420.9,2.01704524]
[1642905858587,0.00113684,2421.2,2420.9,2.02997208]
[1642905859188,0.00113684,2421.2,2420.9,2.23626208]
[1642905859587,0.00113684,2421.2,2420.9,1.42997208]
[1642905859794,0.00113684,2421.2,2420.9,1.41704524]
[1642905861670,0.00113684,2421.2,2420.6,5.3873]
[1642905862052,0.00113684,2421.2,2420.7,0.00170527]
[1642905862652,0.00113684,2421.2,2421.1,1.40080978]
[1642905863059,0.00113684,2421.2,2420.7,3.74540527]
[1642905863452,0.00113684,2421.2,2420.8,0.00113685]
[1642905864053,0.00113684,2421.2,2420.8,0.20742685]
[1642905864253,0.00113684,2421.2,2420.9,4.69446452]
[1642905864454,0.00113684,2421.2,2421.1,2.8]
[1642905865685,1.49405613,2421.7,2420.9,2.42405833]
[1642905865888,0.1652,2421.6,2420.9,1.18025833]
[1642905866086,0.1674737,2421.6,2421.0,0.00113685]
[1642905866284,1.18445627,2421.3,2421.0,0.00113685]
[1642905866685,1.18445627,2421.3,2420.8,0.00227369]
[1642905866686,1.49978537,2420.9,2420.8,0.00227369]
[1642905866888,1.49978537,2420.9,2420.6,0.00341054]
[1642905867085,1.36199455,2420.5,2420.4,0.00454738]
[1642905867285,1.36199455,2420.5,2420.2,0.00568423]
[1642905867485,0.1652,2420.4,2420.0,0.00682108]
[1642905867687,0.20639,2420.9,2420.0,0.00682108]
[1642905867688,0.1652,2420.7,2420.0,0.00682108]
[1642905867891,1.20639,2420.9,2420.0,0.00682108]
[1642905867892,0.1652,2420.8,2420.0,0.00682108]
[1642905868486,1.09600917,2420.7,2420.0,0.00682108]
[1642905868692,0.37159,2420.6,2420.3,1.1894696]
[1642905868893,0.1652,2420.6,2420.0,0.00682108]
[1642905869135,0.1652,2420.9,2420.4,0.00454738]
[1642905869333,0.1652,2420.9,2420.0,3.5222581]
[1642905869533,0.1652,2421.0,2420.0,0.00682108]
[1642905869735,0.1652,2421.1,2420.1,0.00625266]
[1642905869938,0.1652,2421.1,2420.0,0.00682108]
[1642905870334,0.37159,2421.1,2420.0,0.00682108]
[1642905870533,0.67159,2421.1,2420.0,0.00682108]
[1642905870735,1.4098827,2421.0,2420.0,0.00682108]
[1642905870940,0.1652,2420.9,2420.0,0.00682108]
[1642905871136,0.1652,2421.0,2420.0,0.00682108]
[1642905871735,0.1652,2421.1,2420.0,0.00682108]
[1642905872138,0.37159,2421.1,2420.0,0.00682108]
[1642905872337,0.38389335,2421.1,2420.0,0.00682108]
[1642905872537,1.38389335,2421.1,2420.0,0.00682108]
[1642905872737,1.13558228,2420.8,2420.0,0.00682108]
[1642905872994,0.1652,2420.7,2420.0,0.00682108]
[1642905873193,0.1652,2420.7,2420.2,1.47230475]
[1642905873389,1.21869335,2421.1,2420.2,1.47230475]
[1642905873390,0.1652,2421.0,2420.2,1.47230475]
[1642905873594,0.20639,2420.9,2420.3,0.00511581]
[1642905873792,0.1652,2420.8,2420.3,0.00511581]
[1642905874391,4.80658762,2420.8,2420.3,0.00511581]
[1642905874595,1.0,2420.7,2420.3,0.00511581]
[1642905874792,5.64138762,2420.7,2420.3,0.00511581]
[1642905875092,4.64138762,2420.6,2420.0,0.00682108]
[1642905875292,4.80658762,2420.6,2420.0,0.00682108]
[1642905875492,4.80658762,2420.6,2420.0,1.19031918]
[1642905875893,4.80658762,2420.6,2420.1,0.00625266]
[1642905877535,1.26738071,2420.5,2420.0,0.00682108]
[1642905877734,5.77233884,2420.5,2420.0,0.00682108]
[1642905877939,4.50495813,2420.4,2420.0,0.00682108]
[1642905878135,4.50495813,2420.3,2420.0,0.00682108]
[1642905878338,4.62845083,2420.2,2420.0,0.00682108]
[1642905878534,0.20639,2420.9,2420.0,0.00682108]
[1642905878535,4.62845083,2420.1,2420.0,0.00682108]
[1642905878936,0.1652,2421.0,2420.2,1.23435246]
[1642905879236,0.1652,2421.0,2420.3,0.00511581]
[1642905879237,4.79365083,2421.0,2420.3,0.00511581]
[1642905879436,4.62845083,2421.0,2420.3,0.00511581]
[1642905879637,0.20639,2421.2,2420.0,0.00682108]
[1642905879638,4.79365083,2420.9,2420.0,0.00682108]
[1642905879837,4.62845083,2420.9,2420.0,0.00682108]
[1642905880035,4.62845083,2420.8,2420.0,0.00682108]
[1642905880236,4.62845083,2420.7,2420.0,0.00682108]
[1642905880487,2.7943923,2420.6,2420.5,1.5123497]
[1642905880786,0.1652,2421.1,2420.5,1.51632866]
[1642905880787,2.7943923,2421.0,2420.5,1.51632866]
[1642905881187,2.7943923,2420.9,2420.6,0.00341054]
[1642905881491,2.7943923,2421.2,2420.6,0.00341054]
[1642905881689,0.1652,2421.1,2420.6,0.00341054]
[1642905881888,5.16036926,2421.1,2420.6,0.00341054]
[1642905882092,2.7943923,2421.0,2420.6,0.00341054]
[1642905884137,2.7943923,2421.0,2420.9,1.33020663]
[1642905884536,0.62495092,2421.4,2421.0,0.02351713]
[1642905884934,0.62495092,2421.4,2420.9,2.1382019]
[1642905884935,3.39832103,2421.4,2420.9,2.13649663]
[1642905885135,2.77337011,2421.3,2420.9,2.13649663]
[1642905885333,2.77337011,2421.3,2421.0,0.00113684]
[1642905885535,2.77337011,2421.2,2421.0,0.00113684]
[1642905885735,0.0022737,2421.6,2421.0,0.00113684]
[1642905885736,2.77337011,2421.1,2421.0,0.00113684]
[1642905886336,1.93703836,2421.1,2421.0,0.00113684]
[1642905888387,1.95413523,2421.1,2421.0,0.00113684]
[1642905888888,1.95413523,2421.5,2421.0,0.00113684]
[1642905889086,1.95413523,2421.5,2421.4,1.3629955]
[1642905889786,1.95413523,2421.8,2421.4,1.3629955]
[1642905889987,0.1651,2421.7,2421.4,1.3629955]
[1642905890186,2.11923523,2421.7,2421.4,1.3629955]
[1642905890392,3.20594555,2421.7,2421.4,1.3620244]
[1642905890591,3.20594555,2421.7,2420.7,0.00284211]
[1642905890792,1.48278362,2421.6,2420.7,0.00284211]
[1642905890989,3.04084555,2421.6,2420.7,0.00284211]
[1642905891188,0.00170527,2421.5,2420.7,0.00284211]
[1642905891389,0.1652,2421.4,2420.7,0.00284211]
[1642905891654,3.2071824,2421.4,2420.7,0.00284211]
[1642905891845,3.2071824,2421.4,2421.0,1.49828128]
[1642905892441,3.2071824,2421.4,2421.0,1.29828128]
[1642905895245,3.0419824,2421.4,2421.0,1.29828128]
[1642905895885,3.0419824,2421.4,2421.0,26.13457128]
[1642905896088,3.0419824,2421.4,2421.0,1.50457128]
[1642905896290,3.0419824,2421.4,2421.0,1.29828128]
[1642905896486,1.85961801,2421.3,2421.0,1.29828128]
[1642905898691,1.85846151,2421.3,2421.0,1.29828128]
[1642905900538,1.85846151,2421.3,2421.2,3.00629]
[1642905900739,0.00113685,2421.4,2421.3,4.68966001]
[1642905901138,0.00113685,2421.4,2421.3,2.18966001]
[1642905901538,0.00113685,2421.4,2421.3,1.88966001]
[1642905902542,0.00113685,2421.4,2421.3,3.83966001]
[1642905903193,0.00113685,2421.4,2421.3,1.88966001]
[1642905903591,0.00113685,2421.4,2421.3,3.98966001]
[1642905905001,0.00113685,2421.4,2421.3,1.88966001]
[1642905905496,3.685e-05,2421.4,2421.3,5.24595001]
[1642905906500,3.685e-05,2421.4,2421.3,9.92462572]
[1642905906738,0.1651,2422.6,2421.5,24.03]
[1642905906939,7.48,2422.7,2421.6,4.37696571]
[1642905907143,0.00568423,2422.4,2421.6,1.86339]
[1642905907438,0.00511581,2422.3,2421.7,25.37899399]
[1642905907642,0.00511581,2422.3,2421.8,1.86339]
[1642905907839,0.1651,2423.3,2421.9,2.8]
[1642905908139,0.1651,2423.3,2422.0,29.57123685]
[1642905908140,0.00227369,2422.6,2422.0,29.57123685]
[1642905908438,7.48,2423.0,2422.1,0.50629]
[1642905908439,0.00170527,2422.5,2422.1,0.50629]
[1642905908639,0.00170527,2422.5,2422.2,0.6571]
[1642905908941,0.1651,2423.5,2422.9,1.26867197]
[1642905909940,0.165,2423.8,2422.9,1.26867197]
[1642905910242,0.17409477,2423.8,2422.9,1.26867197]
[1642905910484,0.17409477,2423.8,2423.3,1.5489602]
[1642905912088,0.07409477,2423.8,2423.3,1.5489602]
[1642905913691,1.1798246,2423.8,2423.3,1.5489602]
[1642905913891,0.07409477,2423.8,2423.3,1.5489602]
[1642905914169,0.07409477,2423.8,2423.7,1.10623634]
[1642905914759,0.07409477,2423.8,2423.7,2.82402521]
[1642905915057,0.07409477,2423.8,2423.7,3.43557774]
[1642905916160,0.07409477,2423.8,2423.7,4.63267472]
[1642905916367,0.6052121,2424.2,2423.8,2.85]
[1642905916368,7.48,2424.2,2423.8,2.85]
[1642905916564,7.48,2424.2,2423.8,3.15]
[1642905916763,0.00170527,2424.1,2423.9,0.20629]
[1642905917163,7.48,2424.4,2423.9,0.21295022]
[1642905917364,7.48,2424.9,2424.4,1.26891822]
[1642905917562,0.1648,2424.8,2424.4,1.26891822]
[1642905917763,7.48,2424.9,2424.4,1.26891822]
[1642905917764,7.6448,2424.9,2424.4,1.26891822]
[1642905918001,0.00341054,2424.7,2424.4,1.26891822]
[1642905918298,0.00284212,2424.6,2424.4,1.26891822]
[1642905918493,0.00284212,2424.6,2424.5,3.05596]
[1642905918702,7.48,2424.9,2424.5,3.05596]
[1642905919192,0.00397897,2424.8,2424.5,3.05596]
[1642905919594,0.00341054,2424.7,2424.5,3.05596]
[1642905919896,7.48,2424.9,2424.6,3.22075]
[1642905920093,7.48,2424.9,2424.8,3.20604325]
[1642905920393,0.01292029,2425.6,2424.8,3.20604325]
[1642905920394,7.48,2425.4,2424.8,5.42978212]
[1642905920600,7.48,2425.4,2424.8,6.42978212]
[1642905920994,7.48,2425.4,2424.9,24.03]
[1642905921193,0.00795793,2425.5,2424.9,24.03]
[1642905921194,0.00795793,2425.5,2424.9,24.33]
[1642905921399,0.00795793,2425.5,2425.4,1.44225032]
[1642905921647,7.48,2426.0,2425.4,1.44225032]
[1642905922046,0.01023163,2425.9,2425.4,1.44225032]
[1642905922244,0.17503163,2425.9,2425.4,1.44225032]
[1642905922447,0.0096632,2425.8,2425.4,1.44225032]
[1642905922845,0.00909478,2425.7,2425.4,1.44225032]
[1642905923252,0.00852636,2425.6,2425.4,1.44225032]
[1642905923448,0.00852636,2425.6,2425.5,27.38587]
[1642905923645,7.48,2426.0,2425.5,4.52067]
[1642905923844,7.48,2426.0,2425.6,0.1648]
[1642905924044,7.48,2426.0,2425.6,0.02557908]
[1642905924045,0.01023163,2425.9,2425.6,0.02557908]
[1642905924445,0.0096632,2425.8,2425.6,0.02557908]
[1642905924646,0.0096632,2425.8,2425.7,2.65585]
[1642905924848,7.48,2426.0,2425.7,3.25585]
[1642905925048,7.48,2426.0,2425.8,1.25405795]
[1642905925251,0.01023163,2425.9,2425.8,1.25405795]
[1642905925504,0.01023163,2425.9,2425.8,1.45989795]
[1642905925703,0.01023163,2425.9,2425.8,1.71778887]
[1642905925907,0.17503163,2425.9,2425.8,1.71778887]
[1642905927706,0.17503163,2425.9,2425.8,2.8134526]
[1642905928103,0.01023163,2425.9,2425.8,3.3192926]
[1642905928304,0.01023163,2425.9,2425.8,4.6192926]
[1642905928703,3.163e-05,2425.9,2425.8,4.6192926]
[1642905929155,0.1648,2426.7,2425.9,2.85076837]
[1642905929352,7.6448,2427.2,2425.9,3.01556837]
[1642905929559,0.00227369,2426.3,2426.1,24.03]
[1642905929754,7.369e-05,2426.3,2426.2,27.0448]
[1642905929955,0.1648,2427.5,2426.2,28.25064]
[1642905930159,9.64301304,2427.7,2426.3,1.0]
[1642905930160,0.1648,2427.6,2426.3,1.0]
[1642905930458,0.00462108,2427.1,2426.8,1.71778887]
[1642905930654,0.00462108,2427.1,2426.8,2.01778887]
[1642905930854,0.00405265,2427.0,2426.8,2.52354887]
[1642905931255,0.1648,2427.6,2426.8,4.36778887]
[1642905931256,0.00348423,2426.9,2426.8,4.36778887]
[1642905931459,0.00348423,2426.9,2426.8,4.57354887]
[1642905931657,0.00348423,2426.9,2426.8,5.57354887]
[1642905931856,0.00348423,2426.9,2426.8,6.95827302]
[1642905932254,0.00348423,2426.9,2426.8,7.12307302]
[1642905933297,0.00348423,2426.9,2426.8,3.47307302]
[1642905933500,0.00348423,2426.9,2426.8,1.71778887]
[1642905933999,0.16828423,2426.9,2426.8,1.71778887]
[1642905934199,0.00348423,2426.9,2426.8,1.71778887]
[1642905934398,0.16828423,2426.9,2426.8,1.71778887]
[1642905934601,0.16828423,2426.9,2426.0,0.01]
[1642905934602,2.75,2426.8,2426.0,0.01]
[1642905934802,0.012801,2426.6,2426.0,0.01]
[1642905934999,0.1648,2426.5,2426.1,0.00106316]
[1642905935199,1.32181052,2426.4,2426.1,0.00106316]
[1642905935402,0.86035647,2426.3,2426.1,0.00106316]
[1642905935600,0.69555647,2426.2,2426.1,0.00106316]
[1642905936002,3.56035647,2426.2,2426.1,0.00106316]
[1642905936204,4.34559828,2426.2,2426.1,1.71885203]
[1642905936406,4.33381207,2426.1,2426.0,0.01]
[1642905936643,6.68369162,2426.1,2426.0,0.01]
[1642905937445,6.68369162,2426.1,2425.9,0.00076837]
[1642905937446,2.15,2426.0,2425.9,0.00076837]
[1642905937648,4.00787955,2426.0,2425.9,0.00076837]
[1642905937844,4.00787955,2426.0,2425.6,0.02557908]
[1642905937845,2.25,2425.9,2425.6,0.02557908]
[1642905938045,2.48220207,2426.1,2425.6,0.02557908]
[1642905938046,0.85787955,2425.8,2425.6,0.02557908]
[1642905938251,0.69307955,2425.7,2425.6,0.02557908]
[1642905938450,0.73233846,2425.7,2425.6,0.02557908]
[1642905938747,2.71894406,2425.7,2424.5,0.1648]
[1642905938952,2.71894406,2425.7,2424.1,9.5839]
[1642905938953,1.38913846,2425.6,2424.1,9.5839]
[1642905939150,0.73233846,2425.5,2424.1,3.7127]
[1642905939346,0.9568,2425.4,2424.2,0.00795793]
[1642905939547,0.73233846,2425.3,2424.2,0.00795793]
[1642905939747,0.6568,2425.2,2424.2,0.00795793]
[1642905939947,1.38913846,2425.2,2424.6,1.21409541]
[1642905940147,0.63233846,2425.1,2424.6,1.21409541]
[1642905940409,0.63233846,2425.1,2424.7,0.00511582]
[1642905941200,0.63233846,2425.1,2424.1,0.00852636]
[1642905941705,0.63233846,2425.1,2424.1,1.43471338]
[1642905941903,0.63233846,2425.1,2424.1,1.73471338]
[1642905942100,0.63233846,2425.1,2424.1,2.03471338]
[1642905943800,1.2029739,2424.7,2424.1,0.30852636]
[1642905944002,3.05827372,2425.0,2424.9,1.93321511]
[1642905944258,3.05827372,2425.0,2424.1,0.00852636]
[1642905944259,0.3,2424.6,2424.1,0.00852636]
[1642905944452,0.69786702,2424.5,2423.5,0.02]
[1642905944754,0.01519089,2424.3,2423.7,0.01080005]
[1642905944952,0.01993854,2424.1,2423.7,0.01080005]
[1642905945152,1.91136318,2424.0,2423.7,0.01080005]
[1642905945351,0.32252175,2423.9,2423.7,0.01080005]
[1642905945552,0.657,2423.8,2423.0,1.36662792]
[1642905945752,0.32252175,2423.7,2423.0,1.36662792]
[1642905945951,0.32252175,2423.7,2423.4,1.22312908]
[1642905946151,0.32252175,2423.7,2423.1,0.00341054]
[1642905946352,0.32252175,2423.7,2423.5,0.00113685]
[1642905946551,0.32252175,2423.7,2423.0,0.00397896]
[1642905946855,0.32252175,2423.7,2423.1,1.2029739]
[1642905947251,0.32252175,2423.7,2423.5,1.38004062]
[1642905948305,0.492,2423.8,2423.2,0.00284212]
[1642905949906,0.792,2423.8,2423.2,0.00284212]
[1642905950105,0.3,2423.7,2423.2,0.00284212]
[1642905950306,0.165,2423.6,2423.2,0.00284212]
[1642905950510,1.16339,2423.6,2423.2,0.00284212]
[1642905950706,1.16339,2423.6,2422.9,0.02]
[1642905950707,1.16339,2423.6,2423.0,0.00397896]
[1642905950907,0.3,2423.5,2423.0,0.00397896]
[1642905951105,1.86339,2423.6,2423.0,0.00397896]
[1642905951106,0.657,2423.4,2423.0,0.00397896]
[1642905951309,1.11869376,2423.1,2423.0,0.00397896]
[1642905951648,1.61069376,2423.1,2423.0,0.00397896]
[1642905951946,2.07569376,2423.1,2423.0,0.00397896]
[1642905952346,0.957,2423.1,2423.0,0.00397896]
[1642905952946,1.16339,2423.1,2423.0,0.00397896]
[1642905953147,0.657,2423.1,2423.0,0.00397896]
[1642905953347,1.03319,2423.6,2423.0,0.00397896]
[1642905953348,0.492,2423.5,2423.0,0.00397896]
[1642905953647,0.165,2423.6,2423.0,0.00397896]
[1642905953648,0.13982789,2423.6,2423.0,1.20695286]
[1642905953952,0.165,2423.7,2423.0,1.20695286]
[1642905954346,1.13504022,2423.7,2423.0,1.20695286]
[1642905954546,0.97004022,2423.6,2423.0,1.20695286]
[1642905954946,0.97004022,2423.5,2423.0,1.20695286]
[1642905955146,0.97004022,2423.4,2423.0,1.20695286]
[1642905955410,1.13504022,2423.7,2423.0,1.20695286]
[1642905955601,0.97004022,2423.6,2423.0,1.20695286]
[1642905955802,0.97004022,2423.6,2423.3,1.32530427]
[1642905956004,0.97004022,2423.5,2423.3,1.32530427]
[1642905956203,1.27639994,2424.3,2423.4,0.00170527]
[1642905956204,1.0,2424.1,2423.4,0.00170527]
[1642905956402,0.00227369,2424.1,2423.4,0.00170527]
[1642905956605,0.00170527,2424.0,2423.4,0.00170527]
[1642905956804,1.21735406,2424.0,2423.4,0.00170527]
[1642905957003,0.00113685,2423.9,2423.4,0.00170527]
[1642905957206,1.21678564,2423.9,2423.4,0.00170527]
[1642905959853,1.42782369,2423.9,2423.4,0.00170527]
[1642905960158,1.99033929,2423.8,2423.4,0.00170527]
[1642905960355,1.37009748,2423.7,2423.4,0.00170527]
[1642905960553,0.20639,2423.5,2423.0,0.00397896]
[1642905960754,0.165,2423.4,2423.0,0.00397896]
[1642905960953,0.20639,2423.3,2423.0,0.00397896]
[1642905961156,4.12693344,2423.1,2423.0,0.00397896]
[1642905961359,6.71292724,2423.1,2423.0,0.00397896]
[1642905961554,7.71292724,2423.1,2423.0,0.00397896]
[1642905961753,7.79977905,2423.1,2423.0,0.00397896]
[1642905962354,8.83887905,2423.1,2423.0,0.00397896]
[1642905962554,2.0,2423.0,2422.4,0.02]
[1642905962759,2.0086872,2422.9,2422.4,0.02]
[1642905963010,1.5166872,2422.8,2422.5,0.00284212]
[1642905963202,0.492,2422.7,2422.5,0.00284212]
[1642905963399,2.0086872,2422.7,2422.5,0.00284212]
[1642905963599,1.5166872,2422.6,2422.5,0.00284212]
[1642905964202,0.492,2422.7,2422.6,2.23029669]
[1642905964400,2.0086872,2422.7,2422.6,2.23029669]
[1642905964601,2.0086872,2422.7,2422.6,2.23257039]
[1642905965003,2.11442811,2422.7,2422.6,2.23257039]
[1642905965208,1.62242811,2422.7,2422.6,3.48121613]
[1642905965514,1.62242811,2422.7,2422.6,4.08121613]
[1642905965515,1.36028956,2422.7,2422.6,4.08121613]
[1642905965704,1.36028956,2422.7,2422.6,4.28697613]
[1642905966104,1.36028956,2422.7,2422.6,3.98697613]
[1642905966304,0.10687776,2423.9,2422.6,3.78121613]
[1642905966502,0.10687776,2423.9,2423.4,1.30072235]
[1642905966503,0.165,2423.8,2423.4,1.30072235]
[1642905966781,0.00397896,2423.7,2423.4,1.30072235]
[1642905967182,0.00341054,2423.6,2422.7,0.00170528]
[1642905967682,0.10574091,2423.9,2422.7,0.00170528]
[1642905967683,0.00284211,2423.5,2422.7,0.00170528]
[1642905968086,0.165,2423.8,2422.7,0.00170528]
[1642905968087,0.00227369,2423.4,2422.7,0.00170528]
[1642905968281,0.00227369,2423.4,2422.6,2.98776197]
[1642905968482,0.00341055,2423.3,2422.7,1.4779962]
[1642905968688,0.00341055,2423.3,2422.9,0.20576]
[1642905968884,0.00284212,2423.2,2422.9,0.20576]
[1642905969285,0.0022737,2423.1,2422.9,0.20576]
[1642905969683,0.00170528,2423.0,2422.9,0.20576]
[1642905969884,0.00170528,2423.0,2422.9,2.70576]
[1642905970082,0.00170528,2423.0,2422.9,3.70576]
[1642905970508,0.00170528,2423.0,2422.9,27.73576]
[1642905971408,0.10574091,2424.2,2423.0,2.85341055]
[1642905971609,0.10574091,2424.2,2423.1,3.69128903]
[1642905971805,0.00454738,2423.8,2423.2,0.00536837]
[1642905972010,0.00454738,2423.8,2423.3,0.20576]
[1642905972206,0.00397896,2423.7,2423.3,0.20576]
[1642905972407,0.00397896,2423.7,2423.1,2.69128903]
[1642905972610,0.00341054,2423.6,2423.5,1.48243471]
[1642905973111,0.00341054,2423.6,2423.5,1.98819471]
[1642905973312,0.00341054,2423.6,2423.5,4.48502804]
[1642905973611,0.00341054,2423.6,2423.5,5.48502804]
[1642905974009,0.00341054,2423.6,2423.5,3.28819471]
[1642905974251,0.00341054,2423.6,2423.5,4.52789909]
[1642905974450,0.00341054,2423.6,2423.5,29.57075149]
[1642905974451,1.054e-05,2423.6,2423.5,29.57075149]
[1642905974654,1.054e-05,2423.6,2423.5,29.73575149]
[1642905975153,7.48,2424.4,2423.6,2.85]
[1642905975352,7.48,2424.4,2423.7,2.78776354]
[1642905975551,0.00284211,2424.1,2423.8,0.50576]
[1642905975855,0.165,2424.9,2424.0,3.05576]
[1642905976051,0.165,2424.9,2424.6,1.43891747]
[1642905976256,0.165,2424.9,2424.2,0.20576]
[1642905976257,0.1723895,2424.9,2424.2,0.20576]
[1642905976453,0.1723895,2424.9,2424.4,0.20576]
[1642905976654,0.0073895,2424.9,2424.4,0.20576]
[1642905976856,0.0073895,2424.9,2424.4,2.67857748]
[1642905977059,0.0073895,2424.9,2424.4,4.02067748]
[1642905977456,0.0073895,2424.9,2424.4,4.32067748]
[1642905977655,0.0073895,2424.9,2424.5,1.2604307]
[1642905977906,0.0073895,2424.9,2424.6,2.16327904]
[1642905978098,0.0073895,2424.9,2424.7,0.3]
[1642905978503,0.0073895,2424.9,2424.5,1.8604307]
[1642905978999,0.0073895,2424.9,2424.6,2.06432463]
[1642905979199,0.0073895,2424.9,2424.5,1.8604307]
[1642905979601,0.0073895,2424.9,2424.5,0.6]
[1642905979900,0.0073895,2424.9,2423.9,3.19447161]
[1642905979901,0.1648,2424.8,2423.9,3.19447161]
[1642905980100,0.1648,2424.8,2423.8,0.3]
[1642905980301,0.00625265,2424.7,2423.8,0.3]
[1642905980499,0.1648,2424.6,2423.8,0.50576]
[1642905980701,0.1648,2424.6,2423.8,0.3]
[1642905980702,0.17048423,2424.6,2423.8,0.3]
[1642905980899,0.17048423,2424.6,2423.6,12.55570296]
[1642905980900,0.00511581,2424.5,2423.6,12.55570296]
[1642905981104,0.165,2424.4,2423.6,8.72760296]
[1642905981300,0.16954738,2424.4,2423.6,8.72760296]
[1642905981651,0.16954738,2424.4,2423.6,1.71290296]
[1642905981652,0.00397896,2424.3,2423.6,1.71290296]
[1642905982054,0.00341054,2424.2,2423.6,1.71290296]
[1642905982249,0.00341054,2424.2,2423.6,2.01290296]
[1642905982454,0.00284211,2424.1,2423.6,2.31290296]
[1642905982951,7.59784211,2424.4,2424.3,1.18366287]
[1642905983151,7.48,2424.4,2423.7,3.51257452]
[1642905983350,0.00113685,2424.3,2423.7,0.00227369]
[1642905983551,0.00113685,2424.3,2423.4,0.0121563]
[1642905983552,0.00113685,2424.3,2423.8,0.00170527]
[1642905983753,0.00113685,2424.3,2423.6,3.51036814]
[1642905983953,0.00113685,2424.3,2423.6,3.51321025]
[1642905984549,0.00113685,2424.3,2423.6,0.00284211]
[1642905985151,0.165,2424.2,2423.6,0.00284211]
[1642905985399,0.165,2424.2,2423.7,1.12824189]
[1642905985693,0.165,2424.2,2423.8,0.00170527]
[1642905985893,0.00113685,2424.3,2423.8,0.00170527]
[1642905986895,0.00113685,2424.3,2423.3,3.51526337]
[1642905986896,0.165,2424.2,2423.3,3.51526337]
[1642905987095,1.46000431,2424.2,2423.4,0.00397896]
[1642905987595,0.36087113,2423.8,2423.4,0.00397896]
[1642905987798,0.165,2423.7,2423.4,0.00397896]
[1642905987996,0.492,2423.6,2423.4,0.00397896]
[1642905988297,0.165,2423.5,2423.1,0.00568423]
[1642905988494,0.657,2423.5,2423.1,0.00568423]
[1642905988797,1.29500431,2423.4,2423.1,0.00568423]
[1642905988999,0.165,2423.3,2423.1,0.00568423]
[1642905989447,0.165,2423.4,2423.1,0.00568423]
[1642905991246,0.492,2423.3,2423.1,0.00368423]
[1642905993505,0.87885181,2423.3,2423.1,0.00368423]
[1642905993706,0.87885181,2423.3,2423.0,0.00341055]
[1642905993707,3.02746063,2423.2,2423.0,0.00341055]
[1642905993907,3.342,2423.1,2423.0,0.00341055]
[1642905994113,2.85,2423.0,2422.6,2.23029669]
[1642905994307,0.657,2422.9,2422.6,2.23029669]
[1642905994506,2.1,2422.7,2422.6,2.23029669]
[1642905994707,2.592,2422.7,2422.6,2.18029669]
[1642905994910,2.592,2422.7,2422.6,2.18313881]
[1642905995107,1.792,2422.7,2422.6,2.18313881]
[1642905995308,0.792,2422.7,2422.6,2.18313881]
[1642905997545,3.342,2422.7,2422.6,2.18313881]
[1642905997945,4.342,2422.7,2422.6,2.18313881]
[1642905998346,1.792,2422.7,2422.6,2.18313881]
[1642905998547,0.792,2422.7,2422.6,2.18313881]
[1642905998747,0.492,2422.7,2422.6,2.18313881]
[1642905999351,0.2311,2423.5,2422.6,2.68889881]
[1642905999548,0.2311,2423.5,2422.6,2.98889881]
[1642905999747,0.00170527,2423.4,2422.7,0.0022737]
[1642906000147,0.00113685,2423.3,2422.7,0.0022737]
[1642906000599,0.00170527,2423.4,2422.7,0.0022737]
[1642906000800,0.00170527,2423.4,2422.9,1.36506066]
[1642906001001,0.00113685,2423.3,2422.9,1.36506066]
[1642906001501,0.00170527,2423.4,2422.9,1.36506066]
[1642906001801,0.2311,2423.5,2422.9,1.36506066]
[1642906001802,0.00113685,2423.3,2422.9,1.36506066]